[Event "2026 Biel Blitz Open"]
[Site "Biel, CH"]
[Date "2026.07.19"]
[Round "9"]
[White "Ling, Chenxuan"]
[Black "Kozak, Adam"]
[Result "0-1"]
[Board "4"]
[TimeControl "180+2"]
[WhiteFideId "30983118"]
[BlackFideId "753246"]
[WhiteElo "2235"]
[BlackElo "2537"]
[WhiteTitle "CM"]
[BlackTitle "GM"]
[WhiteClock "0:00:09"]
[BlackClock "0:00:06"]
[Variant "Standard"]
[EndDate "2026.07.19"]
[EndTime "14:41:33"]

1. d4 {[%clk 0:03:00]}  Nf6 {[%clk 0:03:03]} 2. c4 {[%clk 0:03:01]}  e6 {[%clk 0:03:04]} 3. Nc3 {[%clk 0:03:02]}  d5 {[%clk 0:03:05]}
4. cxd5 {[%clk 0:03:01]}  exd5 {[%clk 0:03:06]} 5. Bg5 {[%clk 0:03:03]}  c6 {[%clk 0:03:06]} 6. e3 {[%clk 0:03:04]}  Bf5 {[%clk 0:03:01]}
7. Qf3 {[%clk 0:03:05]}  Bg6 {[%clk 0:03:02]} 8. Bxf6 {[%clk 0:03:05]}  Qxf6 {[%clk 0:03:00]} 9. Qxf6 {[%clk 0:03:05]}  gxf6 {[%clk 0:03:04]}
10. h4 {[%clk 0:03:06]}  h6 {[%clk 0:02:56]} 11. Kd2 {[%clk 0:03:05]}  Nd7 {[%clk 0:02:56]} 12. Bd3 {[%clk 0:03:05]}  Bd6 {[%clk 0:02:51]}
13. Nge2 {[%clk 0:03:05]}  Rg8 {[%clk 0:02:44]} 14. g3 {[%clk 0:03:03]}  Bxd3 {[%clk 0:02:39]} 15. Kxd3 {[%clk 0:03:02]}  f5 {[%clk 0:02:39]}
16. Rhg1 {[%clk 0:02:54]}  Nf6 {[%clk 0:02:39]} 17. f3 {[%clk 0:02:49]}  Kd7 {[%clk 0:02:37]} 18. Rae1 {[%clk 0:02:42]}  Rae8 {[%clk 0:02:37]}
19. a3 {[%clk 0:02:32]}  Rg6 {[%clk 0:02:31]} 20. Rg2 {[%clk 0:02:30]}  Reg8 {[%clk 0:02:28]} 21. Reg1 {[%clk 0:02:30]}  a5 {[%clk 0:02:19]}
22. Nd1 {[%clk 0:02:20]}  Nh5 {[%clk 0:02:14]} 23. g4 {[%clk 0:02:18]}  fxg4 {[%clk 0:02:15]} 24. fxg4 {[%clk 0:02:14]}  Be7 {[%clk 0:02:02]}
25. Nf2 {[%clk 0:01:41]}  Bxh4 {[%clk 0:01:45]} 26. Rh1 {[%clk 0:00:56]}  Bxf2 {[%clk 0:01:36]} 27. Rxf2 {[%clk 0:00:56]}  Nf6 {[%clk 0:01:08]}
28. Rhf1 {[%clk 0:00:42]}  Ke7 {[%clk 0:00:56]} 29. Nf4 {[%clk 0:00:31]}  Rxg4 {[%clk 0:00:52]} 30. Ne2 {[%clk 0:00:29]}  R4g6 {[%clk 0:00:52]}
31. Nf4 {[%clk 0:00:30]}  R6g7 {[%clk 0:00:53]} 32. Rh1 {[%clk 0:00:19]}  Ne4 {[%clk 0:00:36]} 33. Rc2 {[%clk 0:00:05]}  Rh7 {[%clk 0:00:23]}
34. Rh5 {[%clk 0:00:05]}  Rg5 {[%clk 0:00:23]} 35. Rh4 {[%clk 0:00:05]}  a4 {[%clk 0:00:18]} 36. Rch2 {[%clk 0:00:05]}  Rg1 {[%clk 0:00:17]}
37. Rxh6 {[%clk 0:00:04]}  Rxh6 {[%clk 0:00:18]} 38. Rxh6 {[%clk 0:00:04]}  Rd1+ {[%clk 0:00:12]} 39. Kc2 {[%clk 0:00:06]}  Rd2+ {[%clk 0:00:13]}
40. Kc1 {[%clk 0:00:07]}  Rf2 {[%clk 0:00:11]} 41. Rh7 {[%clk 0:00:05]}  Rf1+ {[%clk 0:00:06]} 42. Kc2 {[%clk 0:00:05]}  Rg1 {[%clk 0:00:07]}
43. Nd3 {[%clk 0:00:05]}  Rg2+ {[%clk 0:00:07]} 44. Kc1 {[%clk 0:00:06]}  Re2 {[%clk 0:00:05]} 45. Ne5 {[%clk 0:00:05]}  Nd6 {[%clk 0:00:06]}
46. Rh3 {[%clk 0:00:04]}  Nc4 {[%clk 0:00:05]} 47. Nxc4 {[%clk 0:00:05]}  dxc4 {[%clk 0:00:06]} 48. Rf3 {[%clk 0:00:05]}  b5 {[%clk 0:00:06]}
49. Rg3 {[%clk 0:00:05]}  Ke6 {[%clk 0:00:07]} 50. Rf3 {[%clk 0:00:05]}  f5 {[%clk 0:00:06]} 51. Rh3 {[%clk 0:00:05]}  Kd5 {[%clk 0:00:08]}
52. Rf3 {[%clk 0:00:04]}  Ke4 {[%clk 0:00:09]} 53. Rf4+ {[%clk 0:00:06]}  Kxe3 {[%clk 0:00:10]} 54. Rxf5 {[%clk 0:00:07]}  Kd3 {[%clk 0:00:08]}
55. Rf3+ {[%clk 0:00:06]}  Kxd4 {[%clk 0:00:09]} 56. Rf6 {[%clk 0:00:03]}  Kc5 {[%clk 0:00:09]} 57. Rf5+ {[%clk 0:00:04]}  Kb6 {[%clk 0:00:09]}
58. Rg5 {[%clk 0:00:05]}  Rf2 {[%clk 0:00:06]} 59. Kb1 {[%clk 0:00:06]}  Rf3 {[%clk 0:00:06]} 60. Kc2 {[%clk 0:00:07]}  Re3 {[%clk 0:00:05]}
61. Rf5 {[%clk 0:00:08]}  Rd3 {[%clk 0:00:07]} 62. Rg5 {[%clk 0:00:08]}  Rd5 {[%clk 0:00:08]} 63. Rg3 {[%clk 0:00:09]}  Kc5 {[%clk 0:00:08]}
64. Rf3 {[%clk 0:00:09]}  Re5 {[%clk 0:00:08]} 65. Kc3 {[%clk 0:00:09]}  Rg5 {[%clk 0:00:08]} 66. Rh3 {[%clk 0:00:10]}  Rd5 {[%clk 0:00:09]}
67. Kc2 {[%clk 0:00:10]}  Re5 {[%clk 0:00:06]} 68. Kc3 {[%clk 0:00:11]}  Kb6 {[%clk 0:00:06]} 69. Rg3 {[%clk 0:00:11]}  Re1 {[%clk 0:00:05]}
70. Kc2 {[%clk 0:00:12]}  Re6 {[%clk 0:00:04]} 71. Rh3 {[%clk 0:00:12]}  Rd6 {[%clk 0:00:05]} 72. Rg3 {[%clk 0:00:11]}  c5 {[%clk 0:00:04]}
73. Rg5 {[%clk 0:00:11]}  b4 {[%clk 0:00:04]} 74. Rg4 {[%clk 0:00:09]}  Kb5 {[%clk 0:00:06]} 75. Rg8 {[%clk 0:00:09]}  b3+ {[%clk 0:00:05]}
76. Kc1 {[%clk 0:00:10]}  c3 {[%clk 0:00:05]} 77. bxc3 {[%clk 0:00:08]}  Kc4 {[%clk 0:00:07]} 78. Kb2 {[%clk 0:00:08]}  Rd2+ {[%clk 0:00:08]}
79. Kc1 {[%clk 0:00:09]}  Ra2 {[%clk 0:00:06]} 0-1

[Event "2026 Biel Blitz Open"]
[Site "Biel, CH"]
[Date "2026.07.19"]
[Round "9"]
[White "Rappazzo, Johannes"]
[Black "Gloeckler, Christian"]
[Result "1-0"]
[Board "5"]
[TimeControl "180+2"]
[WhiteFideId "1340069"]
[BlackFideId "34608966"]
[WhiteElo "2032"]
[BlackElo "2513"]
[WhiteTitle "FM"]
[BlackTitle "IM"]
[WhiteClock "0:00:19"]
[BlackClock "0:00:09"]
[Variant "Standard"]
[EndDate "2026.07.19"]
[EndTime "14:39:47"]

1. e4 {[%clk 0:03:03]}  c5 {[%clk 0:03:04]} 2. Nf3 {[%clk 0:03:04]}  d6 {[%clk 0:03:05]} 3. d4 {[%clk 0:03:05]}  cxd4 {[%clk 0:03:06]}
4. Nxd4 {[%clk 0:03:06]}  Nf6 {[%clk 0:03:07]} 5. Nc3 {[%clk 0:03:08]}  a6 {[%clk 0:03:09]} 6. Bc4 {[%clk 0:03:08]}  e6 {[%clk 0:03:10]}
7. Be3 {[%clk 0:03:10]}  b5 {[%clk 0:03:09]} 8. Bb3 {[%clk 0:03:11]}  Be7 {[%clk 0:03:10]} 9. Qf3 {[%clk 0:03:11]}  Qc7 {[%clk 0:02:50]}
10. g4 {[%clk 0:03:11]}  b4 {[%clk 0:02:35]} 11. Nce2 {[%clk 0:03:12]}  Bb7 {[%clk 0:02:23]} 12. Nf4 {[%clk 0:03:13]}  Bxe4 {[%clk 0:02:09]}
13. Qh3 {[%clk 0:03:14]}  Nc6 {[%clk 0:02:00]} 14. Ndxe6 {[%clk 0:02:48]}  fxe6 {[%clk 0:02:01]} 15. Nxe6 {[%clk 0:02:49]}  Qb7 {[%clk 0:01:59]}
16. Nxg7+ {[%clk 0:02:44]}  Kd8 {[%clk 0:02:00]} 17. Ne6+ {[%clk 0:02:42]}  Kc8 {[%clk 0:01:57]} 18. g5 {[%clk 0:02:32]}  Nd7 {[%clk 0:01:58]}
19. Rg1 {[%clk 0:02:21]}  Nce5 {[%clk 0:01:53]} 20. O-O-O {[%clk 0:02:16]}  Kb8 {[%clk 0:01:39]} 21. f4 {[%clk 0:01:54]}  a5 {[%clk 0:01:04]}
22. fxe5 {[%clk 0:01:16]}  a4 {[%clk 0:01:05]} 23. exd6 {[%clk 0:01:03]}  axb3 {[%clk 0:01:00]} 24. dxe7 {[%clk 0:01:03]}  bxa2 {[%clk 0:00:49]}
25. Qg3+ {[%clk 0:00:49]}  Kc8 {[%clk 0:00:50]} 26. Kd2 {[%clk 0:00:32]}  Ra6 {[%clk 0:00:39]} 27. Nf8 {[%clk 0:00:25]}  Qd5+ {[%clk 0:00:28]}
28. Ke1 {[%clk 0:00:15]}  Qxd1+ {[%clk 0:00:17]} 29. Kxd1 {[%clk 0:00:16]}  a1=Q+ {[%clk 0:00:17]} 30. Ke2 {[%clk 0:00:13]}  Rxf8 {[%clk 0:00:05]}
31. exf8=Q+ {[%clk 0:00:14]}  Nxf8 {[%clk 0:00:06]} 32. Rxa1 {[%clk 0:00:15]}  Rxa1 {[%clk 0:00:07]} 33. Qd6 {[%clk 0:00:15]}  Nd7 {[%clk 0:00:07]}
34. Qxb4 {[%clk 0:00:12]}  Bg6 {[%clk 0:00:07]} 35. Qc4+ {[%clk 0:00:13]}  Kd8 {[%clk 0:00:06]} 36. Bd4 {[%clk 0:00:13]}  Ra5 {[%clk 0:00:05]}
37. Bf6+ {[%clk 0:00:12]}  Nxf6 {[%clk 0:00:05]} 38. gxf6 {[%clk 0:00:14]}  Re5+ {[%clk 0:00:05]} 39. Kf2 {[%clk 0:00:09]}  Rf5+ {[%clk 0:00:06]}
40. Kg3 {[%clk 0:00:09]}  Rxf6 {[%clk 0:00:06]} 41. b4 {[%clk 0:00:07]}  Kd7 {[%clk 0:00:06]} 42. b5 {[%clk 0:00:08]}  Bf7 {[%clk 0:00:05]}
43. Qd4+ {[%clk 0:00:09]}  Rd6 {[%clk 0:00:06]} 44. Qa7+ {[%clk 0:00:09]}  Ke8 {[%clk 0:00:04]} 45. b6 {[%clk 0:00:11]}  Rg6+ {[%clk 0:00:05]}
46. Kf2 {[%clk 0:00:09]}  Bd5 {[%clk 0:00:04]} 47. b7 {[%clk 0:00:07]}  Rg2+ {[%clk 0:00:04]} 48. Ke3 {[%clk 0:00:09]}  Bxb7 {[%clk 0:00:04]}
49. Qxb7 {[%clk 0:00:09]}  Rxc2 {[%clk 0:00:03]} 50. Qxh7 {[%clk 0:00:09]}  Rc6 {[%clk 0:00:04]} 51. Qg8+ {[%clk 0:00:10]}  Ke7 {[%clk 0:00:05]}
52. Qg7+ {[%clk 0:00:10]}  Ke6 {[%clk 0:00:05]} 53. h4 {[%clk 0:00:11]}  Rc5 {[%clk 0:00:03]} 54. Qg6+ {[%clk 0:00:12]}  Ke7 {[%clk 0:00:05]}
55. h5 {[%clk 0:00:13]}  Re5+ {[%clk 0:00:06]} 56. Kf4 {[%clk 0:00:14]}  Re6 {[%clk 0:00:07]} 57. Qg7+ {[%clk 0:00:15]}  Kd6 {[%clk 0:00:06]}
58. h6 {[%clk 0:00:16]}  Re1 {[%clk 0:00:07]} 59. h7 {[%clk 0:00:16]}  Rf1+ {[%clk 0:00:08]} 60. Ke3 {[%clk 0:00:17]}  Re1+ {[%clk 0:00:08]}
61. Kd2 {[%clk 0:00:19]}  Re7 {[%clk 0:00:09]} 62. Qxe7+ {[%clk 0:00:19]}  Kd5 {[%clk 0:00:06]} 1-0

[Event "2026 Biel Blitz Open"]
[Site "Biel, CH"]
[Date "2026.07.19"]
[Round "9"]
[White "Thorfinnsson, Bjorn"]
[Black "Cao, Qingfeng"]
[Result "1-0"]
[Board "6"]
[TimeControl "180+2"]
[WhiteFideId "2300982"]
[BlackFideId "8627568"]
[WhiteElo "2396"]
[BlackElo "2264"]
[WhiteTitle "IM"]
[BlackTitle "IM"]
[WhiteClock "0:01:12"]
[BlackClock "0:00:21"]
[Variant "Standard"]
[EndDate "2026.07.19"]
[EndTime "14:36:35"]

1. d4 {[%clk 0:03:03]}  Nf6 {[%clk 0:03:03]} 2. Nf3 {[%clk 0:03:04]}  e6 {[%clk 0:03:04]} 3. Bg5 {[%clk 0:03:05]}  d5 {[%clk 0:03:03]}
4. e3 {[%clk 0:03:06]}  Be7 {[%clk 0:03:01]} 5. Bd3 {[%clk 0:03:07]}  c5 {[%clk 0:03:00]} 6. c3 {[%clk 0:03:08]}  O-O {[%clk 0:02:55]}
7. Nbd2 {[%clk 0:03:09]}  h6 {[%clk 0:02:45]} 8. h4 {[%clk 0:03:10]}  b6 {[%clk 0:02:32]} 9. Bxf6 {[%clk 0:03:09]}  Bxf6 {[%clk 0:02:33]}
10. g4 {[%clk 0:03:10]}  Ba6 {[%clk 0:02:16]} 11. Bxa6 {[%clk 0:03:08]}  Nxa6 {[%clk 0:02:17]} 12. g5 {[%clk 0:03:09]}  hxg5 {[%clk 0:02:12]}
13. hxg5 {[%clk 0:03:10]}  Bxg5 {[%clk 0:02:13]} 14. Qe2 {[%clk 0:02:39]}  Nc7 {[%clk 0:01:52]} 15. O-O-O {[%clk 0:02:39]}  Qf6 {[%clk 0:01:42]}
16. Rdg1 {[%clk 0:02:36]}  Bh6 {[%clk 0:01:42]} 17. Ne5 {[%clk 0:02:37]}  Kh7 {[%clk 0:01:22]} 18. Ng4 {[%clk 0:02:04]}  Qf5 {[%clk 0:01:20]}
19. Rh5 {[%clk 0:02:04]}  Qg6 {[%clk 0:01:15]} 20. Rgh1 {[%clk 0:01:59]}  Rh8 {[%clk 0:01:08]} 21. Nf3 {[%clk 0:01:32]}  f6 {[%clk 0:01:08]}
22. Nh4 {[%clk 0:01:26]}  Qf7 {[%clk 0:00:59]} 23. Nxh6 {[%clk 0:01:21]}  gxh6 {[%clk 0:00:59]} 24. Rxh6+ {[%clk 0:01:17]}  Kg7 {[%clk 0:00:21]}
25. Qg4+ {[%clk 0:01:12]} 1-0

[Event "2026 Biel Blitz Open"]
[Site "Biel, CH"]
[Date "2026.07.19"]
[Round "9"]
[White "Mohammad Nubairshah Shaikh"]
[Black "Gautier, Anand"]
[Result "1-0"]
[Board "7"]
[TimeControl "180+2"]
[WhiteFideId "5053196"]
[BlackFideId "26010186"]
[WhiteElo "2316"]
[BlackElo "2198"]
[WhiteTitle "IM"]
[BlackTitle "FM"]
[WhiteClock "0:00:30"]
[BlackClock "0:00:04"]
[Variant "Standard"]
[EndDate "2026.07.19"]
[EndTime "14:38:48"]

1. Nf3 {[%clk 0:03:03]}  Nf6 {[%clk 0:03:04]} 2. g3 {[%clk 0:03:04]}  g6 {[%clk 0:03:05]} 3. b3 {[%clk 0:03:06]}  Bg7 {[%clk 0:03:06]}
4. Bb2 {[%clk 0:03:07]}  O-O {[%clk 0:03:07]} 5. Bg2 {[%clk 0:03:09]}  c5 {[%clk 0:03:07]} 6. c4 {[%clk 0:03:10]}  d6 {[%clk 0:03:08]}
7. d4 {[%clk 0:03:11]}  d5 {[%clk 0:03:04]} 8. Nbd2 {[%clk 0:03:07]}  cxd4 {[%clk 0:02:58]} 9. O-O {[%clk 0:03:04]}  Nc6 {[%clk 0:02:58]}
10. Nxd4 {[%clk 0:03:02]}  Re8 {[%clk 0:02:23]} 11. cxd5 {[%clk 0:02:56]}  Nxd4 {[%clk 0:02:21]} 12. Bxd4 {[%clk 0:02:56]}  Nxd5 {[%clk 0:02:21]}
13. Bxg7 {[%clk 0:02:47]}  Kxg7 {[%clk 0:02:22]} 14. Nc4 {[%clk 0:02:45]}  Be6 {[%clk 0:02:13]} 15. Qd4+ {[%clk 0:02:46]}  Nf6 {[%clk 0:01:22]}
16. Qxd8 {[%clk 0:02:47]}  Rexd8 {[%clk 0:01:16]} 17. Bxb7 {[%clk 0:02:45]}  Rab8 {[%clk 0:01:15]} 18. Na5 {[%clk 0:02:32]}  Rd2 {[%clk 0:01:07]}
19. Bf3 {[%clk 0:02:28]}  Rb5 {[%clk 0:00:48]} 20. Nc6 {[%clk 0:02:24]}  a5 {[%clk 0:00:43]} 21. Rfd1 {[%clk 0:02:17]}  Rb2 {[%clk 0:00:27]}
22. a4 {[%clk 0:01:41]}  Rc5 {[%clk 0:00:26]} 23. Nd4 {[%clk 0:01:36]}  Bxb3 {[%clk 0:00:23]} 24. Nxb3 {[%clk 0:01:12]}  Rxb3 {[%clk 0:00:24]}
25. Rac1 {[%clk 0:01:12]}  Rxc1 {[%clk 0:00:23]} 26. Rxc1 {[%clk 0:01:13]}  Rb4 {[%clk 0:00:21]} 27. Bc6 {[%clk 0:01:14]}  Ng4 {[%clk 0:00:17]}
28. Rc5 {[%clk 0:01:12]}  Rb2 {[%clk 0:00:15]} 29. Bf3 {[%clk 0:01:03]}  h5 {[%clk 0:00:16]} 30. Rxa5 {[%clk 0:00:58]}  Kf6 {[%clk 0:00:18]}
31. Rb5 {[%clk 0:00:56]}  Ra2 {[%clk 0:00:17]} 32. a5 {[%clk 0:00:39]}  Ne5 {[%clk 0:00:18]} 33. Kg2 {[%clk 0:00:27]}  Nxf3 {[%clk 0:00:19]}
34. Kxf3 {[%clk 0:00:27]}  e6 {[%clk 0:00:17]} 35. h4 {[%clk 0:00:24]}  Ra3+ {[%clk 0:00:16]} 36. Ke4 {[%clk 0:00:26]}  Ra2 {[%clk 0:00:17]}
37. Kd3 {[%clk 0:00:26]}  Ra3+ {[%clk 0:00:15]} 38. Kc4 {[%clk 0:00:23]}  Ra2 {[%clk 0:00:16]} 39. Kd3 {[%clk 0:00:23]}  Ra3+ {[%clk 0:00:17]}
40. Kd4 {[%clk 0:00:24]}  Ra2 {[%clk 0:00:17]} 41. Kc5 {[%clk 0:00:25]}  Rxe2 {[%clk 0:00:12]} 42. a6 {[%clk 0:00:26]}  Ra2 {[%clk 0:00:06]}
43. Kb6 {[%clk 0:00:27]}  e5 {[%clk 0:00:04]} 44. a7 {[%clk 0:00:28]}  Rxa7 {[%clk 0:00:03]} 45. Kxa7 {[%clk 0:00:29]}  Kf5 {[%clk 0:00:04]}
46. Rb4 {[%clk 0:00:30]}  e4 {[%clk 0:00:00]} 1-0

[Event "2026 Biel Blitz Open"]
[Site "Biel, CH"]
[Date "2026.07.19"]
[Round "9"]
[White "Dong, Hongfu"]
[Black "Savitha Shri B"]
[Result "0-1"]
[Board "8"]
[TimeControl "180+2"]
[WhiteFideId "8626960"]
[BlackFideId "35061887"]
[WhiteElo "2290"]
[BlackElo "2161"]
[BlackTitle "IM"]
[WhiteClock "0:00:12"]
[BlackClock "0:00:23"]
[Variant "Standard"]
[EndDate "2026.07.19"]
[EndTime "14:39:46"]

1. e4 {[%clk 0:03:03]}  c5 {[%clk 0:03:03]} 2. Nf3 {[%clk 0:03:04]}  e6 {[%clk 0:03:01]} 3. d4 {[%clk 0:03:05]}  cxd4 {[%clk 0:03:06]}
4. Nxd4 {[%clk 0:03:06]}  Nc6 {[%clk 0:03:07]} 5. Bf4 {[%clk 0:03:08]}  Nf6 {[%clk 0:02:29]} 6. Nb5 {[%clk 0:03:09]}  e5 {[%clk 0:02:30]}
7. Bg5 {[%clk 0:03:10]}  d6 {[%clk 0:02:29]} 8. Bxf6 {[%clk 0:03:09]}  gxf6 {[%clk 0:02:30]} 9. N5c3 {[%clk 0:03:00]}  Bg7 {[%clk 0:02:28]}
10. Nb5 {[%clk 0:02:33]}  Bf8 {[%clk 0:02:01]} 11. Nd2 {[%clk 0:02:32]}  a6 {[%clk 0:02:02]} 12. Nc3 {[%clk 0:02:32]}  Bg7 {[%clk 0:01:59]}
13. Nc4 {[%clk 0:02:31]}  Nd4 {[%clk 0:01:57]} 14. Ne2 {[%clk 0:01:51]}  Nxe2 {[%clk 0:01:25]} 15. Bxe2 {[%clk 0:01:52]}  Bf8 {[%clk 0:01:17]}
16. Ne3 {[%clk 0:01:49]}  Be6 {[%clk 0:01:15]} 17. Bg4 {[%clk 0:01:40]}  Qa5+ {[%clk 0:00:42]} 18. c3 {[%clk 0:01:37]}  Qb5 {[%clk 0:00:43]}
19. Bxe6 {[%clk 0:01:05]}  fxe6 {[%clk 0:00:44]} 20. Qh5+ {[%clk 0:01:06]}  Ke7 {[%clk 0:00:39]} 21. O-O-O {[%clk 0:01:07]}  Rc8 {[%clk 0:00:38]}
22. f3 {[%clk 0:00:30]}  Qe8 {[%clk 0:00:37]} 23. Qh4 {[%clk 0:00:28]}  Qg6 {[%clk 0:00:38]} 24. Kb1 {[%clk 0:00:27]}  Qg5 {[%clk 0:00:38]}
25. Qf2 {[%clk 0:00:28]}  h5 {[%clk 0:00:37]} 26. Rd3 {[%clk 0:00:29]}  Bh6 {[%clk 0:00:34]} 27. Rhd1 {[%clk 0:00:29]}  Rhd8 {[%clk 0:00:36]}
28. g3 {[%clk 0:00:28]}  b5 {[%clk 0:00:36]} 29. Ng2 {[%clk 0:00:26]}  b4 {[%clk 0:00:37]} 30. f4 {[%clk 0:00:27]}  exf4 {[%clk 0:00:37]}
31. gxf4 {[%clk 0:00:27]}  Qc5 {[%clk 0:00:37]} 32. Qe2 {[%clk 0:00:20]}  bxc3 {[%clk 0:00:37]} 33. Rxc3 {[%clk 0:00:21]}  Qb5 {[%clk 0:00:37]}
34. Qxb5 {[%clk 0:00:07]}  axb5 {[%clk 0:00:38]} 35. Rg3 {[%clk 0:00:08]}  Rg8 {[%clk 0:00:32]} 36. Rdd3 {[%clk 0:00:09]}  h4 {[%clk 0:00:29]}
37. Nxh4 {[%clk 0:00:05]}  Bxf4 {[%clk 0:00:23]} 38. b3 {[%clk 0:00:05]}  Bxg3 {[%clk 0:00:22]} 39. hxg3 {[%clk 0:00:06]}  Rg4 {[%clk 0:00:23]}
40. Re3 {[%clk 0:00:08]}  Rcg8 {[%clk 0:00:24]} 41. Rc3 {[%clk 0:00:08]}  Rxg3 {[%clk 0:00:24]} 42. Rc7+ {[%clk 0:00:10]}  Kd8 {[%clk 0:00:25]}
43. Rb7 {[%clk 0:00:12]}  R8g4 {[%clk 0:00:23]} 0-1

[Event "2026 Biel Blitz Open"]
[Site "Biel, CH"]
[Date "2026.07.19"]
[Round "9"]
[White "Erne, Raphael"]
[Black "Safarli, Eltaj"]
[Result "0-1"]
[Board "9"]
[TimeControl "180+2"]
[WhiteFideId "1341928"]
[BlackFideId "13402129"]
[WhiteElo "2128"]
[BlackElo "2619"]
[BlackTitle "GM"]
[WhiteClock "0:00:03"]
[BlackClock "0:01:41"]
[Variant "Standard"]
[EndDate "2026.07.19"]
[EndTime "14:36:34"]

1. c4 {[%clk 0:03:02]}  Nf6 {[%clk 0:03:01]} 2. g3 {[%clk 0:03:02]}  e6 {[%clk 0:03:01]} 3. Bg2 {[%clk 0:03:02]}  d5 {[%clk 0:03:02]}
4. Nf3 {[%clk 0:03:03]}  Be7 {[%clk 0:03:04]} 5. d4 {[%clk 0:03:03]}  O-O {[%clk 0:03:04]} 6. Qc2 {[%clk 0:03:04]}  dxc4 {[%clk 0:02:55]}
7. O-O {[%clk 0:02:42]}  a6 {[%clk 0:02:55]} 8. a4 {[%clk 0:02:38]}  Nc6 {[%clk 0:02:52]} 9. Qxc4 {[%clk 0:02:34]}  Na5 {[%clk 0:02:53]}
10. Qc2 {[%clk 0:02:32]}  b6 {[%clk 0:02:54]} 11. Nc3 {[%clk 0:02:30]}  Bb7 {[%clk 0:02:55]} 12. Bf4 {[%clk 0:02:27]}  c5 {[%clk 0:02:53]}
13. Rfd1 {[%clk 0:02:15]}  cxd4 {[%clk 0:02:15]} 14. Nxd4 {[%clk 0:02:12]}  Qc8 {[%clk 0:02:16]} 15. e4 {[%clk 0:01:53]}  Rd8 {[%clk 0:02:17]}
16. Rac1 {[%clk 0:01:35]}  Bc5 {[%clk 0:02:14]} 17. Nb3 {[%clk 0:01:21]}  Nxb3 {[%clk 0:02:01]} 18. Rxd8+ {[%clk 0:01:13]}  Qxd8 {[%clk 0:02:02]}
19. Qxb3 {[%clk 0:00:54]}  Ng4 {[%clk 0:02:01]} 20. Nd1 {[%clk 0:00:37]}  Rc8 {[%clk 0:01:45]} 21. h3 {[%clk 0:00:32]}  e5 {[%clk 0:01:46]}
22. Be3 {[%clk 0:00:11]}  Nxe3 {[%clk 0:01:45]} 23. Nxe3 {[%clk 0:00:10]}  g6 {[%clk 0:01:42]} 24. Rd1 {[%clk 0:00:11]}  Qe7 {[%clk 0:01:42]}
25. Nd5 {[%clk 0:00:12]}  Bxd5 {[%clk 0:01:42]} 26. Qxd5 {[%clk 0:00:13]}  Bd4 {[%clk 0:01:43]} 27. b3 {[%clk 0:00:11]}  Rc2 {[%clk 0:01:42]}
28. Rxd4 {[%clk 0:00:06]}  exd4 {[%clk 0:01:42]} 29. Qxd4 {[%clk 0:00:07]}  Qc5 {[%clk 0:01:40]} 30. Qd8+ {[%clk 0:00:03]}  Kg7 {[%clk 0:01:41]} 0-1

[Event "2026 Biel Blitz Open"]
[Site "Biel, CH"]
[Date "2026.07.19"]
[Round "9"]
[White "Filipovic, Branko"]
[Black "Alexakis, Dimitris"]
[Result "0-1"]
[Board "10"]
[TimeControl "180+2"]
[WhiteFideId "14507951"]
[BlackFideId "4277023"]
[WhiteElo "2109"]
[BlackElo "2459"]
[WhiteTitle "IM"]
[BlackTitle "GM"]
[WhiteClock "0:03:02"]
[BlackClock "0:00:35"]
[Variant "Standard"]
[EndDate "2026.07.19"]
[EndTime "14:38:04"]

1. d4 {[%clk 0:03:03]}  Nf6 {[%clk 0:03:03]} 2. Bf4 {[%clk 0:03:03]}  g6 {[%clk 0:03:00]} 3. Nf3 {[%clk 0:03:04]}  Bg7 {[%clk 0:03:01]}
4. e3 {[%clk 0:03:05]}  d6 {[%clk 0:03:02]} 5. h3 {[%clk 0:03:06]}  O-O {[%clk 0:03:02]} 6. Be2 {[%clk 0:03:04]}  Nbd7 {[%clk 0:03:02]}
7. O-O {[%clk 0:02:56]}  e5 {[%clk 0:03:00]} 8. Bh2 {[%clk 0:02:56]}  Qe7 {[%clk 0:02:51]} 9. c4 {[%clk 0:02:52]}  e4 {[%clk 0:02:49]}
10. Nfd2 {[%clk 0:02:53]}  h5 {[%clk 0:02:40]} 11. Nc3 {[%clk 0:02:53]}  Re8 {[%clk 0:02:41]} 12. Qc2 {[%clk 0:02:31]}  Nf8 {[%clk 0:02:40]}
13. b4 {[%clk 0:02:10]}  N8h7 {[%clk 0:02:40]} 14. c5 {[%clk 0:02:08]}  Bf5 {[%clk 0:02:33]} 15. cxd6 {[%clk 0:01:56]}  cxd6 {[%clk 0:02:34]}
16. Nc4 {[%clk 0:01:53]}  Red8 {[%clk 0:02:32]} 17. Nb5 {[%clk 0:01:44]}  Ne8 {[%clk 0:02:31]} 18. Rac1 {[%clk 0:01:35]}  Ng5 {[%clk 0:02:27]}
19. Kh1 {[%clk 0:01:30]}  d5 {[%clk 0:01:53]} 20. Ne5 {[%clk 0:01:14]}  f6 {[%clk 0:01:50]} 21. g4 {[%clk 0:01:13]}  Rac8 {[%clk 0:01:30]}
22. Qb3 {[%clk 0:01:07]}  Rxc1 {[%clk 0:01:30]} 23. Rxc1 {[%clk 0:01:09]}  fxe5 {[%clk 0:01:22]} 24. gxf5 {[%clk 0:01:09]}  Nxh3 {[%clk 0:01:21]}
25. Kg2 {[%clk 0:00:52]}  Ng5 {[%clk 0:01:20]} 26. fxg6 {[%clk 0:00:49]}  Qe6 {[%clk 0:01:09]} 27. Kh1 {[%clk 0:00:34]}  a6 {[%clk 0:01:10]}
28. Nc3 {[%clk 0:00:34]}  exd4 {[%clk 0:01:10]} 29. exd4 {[%clk 0:00:33]}  Bxd4 {[%clk 0:01:04]} 30. Rd1 {[%clk 0:00:28]}  Bxc3 {[%clk 0:00:54]}
31. Qxc3 {[%clk 0:00:29]}  Nf6 {[%clk 0:00:55]} 32. Qc7 {[%clk 0:00:20]}  Rd7 {[%clk 0:00:53]} 33. Qf4 {[%clk 0:00:17]}  Nh3 {[%clk 0:00:51]}
34. Qh4 {[%clk 0:00:13]}  Ng4 {[%clk 0:00:44]} 35. Bg3 {[%clk 0:00:12]}  e3 {[%clk 0:00:42]} 36. Bxg4 {[%clk 0:00:10]}  hxg4 {[%clk 0:00:35]}
37. Kg2 {[%clk 0:00:00]} 0-1